[Event "Titled Tuesday Blitz February 15 Early 2022"]
[White "Bortnyk, Olexandr"]
[Black "Pinheiro, Iung Alicio de O."]
[WhiteFideId "14120828"]
[BlackFideId "2104350"]
[WhiteElo "2723"]
[BlackElo "2656"]
[Result "1-0"]
[Round "02"]
[TimeControl "180+1"]
[Date "2022.02.15"]
[WhiteClock "0:00:04"]
[BlackClock "0:00:06"]

1. e4 {[%clk 0:03:00]}  c6 {[%clk 0:02:59]} 2. c4 {[%clk 0:02:48]}  e5 {[%clk 0:02:57]} 3. Nf3 {[%clk 0:02:45]}  d6 {[%clk 0:02:57]} 4. Nc3 {[%clk 0:02:44]}  Nf6 {[%clk 0:02:56]} 5. d4 {[%clk 0:02:45]}  Nbd7 {[%clk 0:02:56]} 6. Be2 {[%clk 0:02:42]}  Be7 {[%clk 0:02:55]} 7. h3 {[%clk 0:02:42]}  a6 {[%clk 0:02:55]} 8. Be3 {[%clk 0:02:42]}  O-O {[%clk 0:02:54]} 9. d5 {[%clk 0:02:34]}  Re8 {[%clk 0:02:39]} 10. O-O {[%clk 0:02:22]}  Bf8 {[%clk 0:02:39]} 11. dxc6 {[%clk 0:02:21]}  bxc6 {[%clk 0:02:39]} 12. Qa4 {[%clk 0:02:16]}  Qc7 {[%clk 0:02:33]} 13. Rfd1 {[%clk 0:02:14]}  Rb8 {[%clk 0:02:31]} 14. b4 {[%clk 0:02:08]}  a5 {[%clk 0:02:16]} 15. a3 {[%clk 0:01:52]}  axb4 {[%clk 0:02:10]} 16. axb4 {[%clk 0:01:53]}  Bb7 {[%clk 0:02:10]} 17. Qb3 {[%clk 0:01:37]}  h6 {[%clk 0:02:05]} 18. Ra7 {[%clk 0:01:27]}  Ra8 {[%clk 0:02:04]} 19. Rda1 {[%clk 0:01:27]}  Rxa7 {[%clk 0:02:03]} 20. Rxa7 {[%clk 0:01:27]}  Ra8 {[%clk 0:02:04]} 21. Qa4 {[%clk 0:01:27]}  Rxa7 {[%clk 0:02:01]} 22. Qxa7 {[%clk 0:01:28]}  Qb8 {[%clk 0:01:59]} 23. Qa5 {[%clk 0:01:28]}  Qa8 {[%clk 0:01:55]} 24. Qxa8 {[%clk 0:01:20]}  Bxa8 {[%clk 0:01:55]} 25. Nd2 {[%clk 0:01:21]}  d5 {[%clk 0:01:41]} 26. exd5 {[%clk 0:01:00]}  Bxb4 {[%clk 0:01:41]} 27. dxc6 {[%clk 0:00:58]}  Bxc6 {[%clk 0:01:37]} 28. Na2 {[%clk 0:00:57]}  Bc5 {[%clk 0:01:37]} 29. Nb3 {[%clk 0:00:54]}  Bxe3 {[%clk 0:01:36]} 30. fxe3 {[%clk 0:00:55]}  Kf8 {[%clk 0:01:13]} 31. Nc3 {[%clk 0:00:49]}  Ke7 {[%clk 0:01:12]} 32. Bf3 {[%clk 0:00:50]}  Kd6 {[%clk 0:01:10]} 33. Kf2 {[%clk 0:00:50]}  Nc5 {[%clk 0:01:06]} 34. Na5 {[%clk 0:00:46]}  Bd7 {[%clk 0:01:01]} 35. Nb5+ {[%clk 0:00:41]}  Ke7 {[%clk 0:00:56]} 36. Ba8 {[%clk 0:00:34]}  Be6 {[%clk 0:00:55]} 37. Nc3 {[%clk 0:00:33]}  Nfd7 {[%clk 0:00:53]} 38. Bd5 {[%clk 0:00:28]}  Nb6 {[%clk 0:00:49]} 39. e4 {[%clk 0:00:26]}  f6 {[%clk 0:00:47]} 40. Ke3 {[%clk 0:00:25]}  Bd7 {[%clk 0:00:46]} 41. g4 {[%clk 0:00:24]}  Nba4 {[%clk 0:00:43]} 42. Nb5 {[%clk 0:00:23]}  Nb6 {[%clk 0:00:42]} 43. Nc3 {[%clk 0:00:08]}  Kd6 {[%clk 0:00:37]} 44. Ne2 {[%clk 0:00:05]}  Ne6 {[%clk 0:00:18]} 45. Ng3 {[%clk 0:00:06]}  g6 {[%clk 0:00:18]} 46. Nb7+ {[%clk 0:00:05]}  Kc7 {[%clk 0:00:18]} 47. Na5 {[%clk 0:00:04]}  Kd6 {[%clk 0:00:18]} 48. Ne2 {[%clk 0:00:05]}  Na4 {[%clk 0:00:17]} 49. Nc1 {[%clk 0:00:03]}  Nac5 {[%clk 0:00:17]} 50. Na2 {[%clk 0:00:03]}  Nd4 {[%clk 0:00:17]} 51. Nc3 {[%clk 0:00:03]}  Ke7 {[%clk 0:00:17]} 52. Ba8 {[%clk 0:00:02]}  f5 {[%clk 0:00:15]} 53. Nd5+ {[%clk 0:00:03]}  Kf7 {[%clk 0:00:15]} 54. Nb6 {[%clk 0:00:03]}  Be6 {[%clk 0:00:14]} 55. Bd5 {[%clk 0:00:03]}  Kf6 {[%clk 0:00:14]} 56. gxf5 {[%clk 0:00:03]}  gxf5 {[%clk 0:00:14]} 57. exf5 {[%clk 0:00:04]}  Bxf5 {[%clk 0:00:14]} 58. h4 {[%clk 0:00:04]}  Nce6 {[%clk 0:00:14]} 59. Nc6 {[%clk 0:00:04]}  Nc5 {[%clk 0:00:14]} 60. Nxd4 {[%clk 0:00:04]}  exd4+ {[%clk 0:00:15]} 61. Kxd4 {[%clk 0:00:05]}  Nb3+ {[%clk 0:00:15]} 62. Ke3 {[%clk 0:00:05]}  Nc5 {[%clk 0:00:16]} 63. Kf4 {[%clk 0:00:05]}  Bg6 {[%clk 0:00:14]} 64. Bf3 {[%clk 0:00:04]}  Bf7 {[%clk 0:00:14]} 65. Nd5+ {[%clk 0:00:04]}  Ke6 {[%clk 0:00:14]} 66. Ne3 {[%clk 0:00:04]}  Kf6 {[%clk 0:00:12]} 67. Ng4+ {[%clk 0:00:04]}  Kg7 {[%clk 0:00:12]} 68. Bd5 {[%clk 0:00:04]}  Be8 {[%clk 0:00:12]} 69. Ke5 {[%clk 0:00:03]}  Bd7 {[%clk 0:00:12]} 70. Ne3 {[%clk 0:00:03]}  Ba4 {[%clk 0:00:12]} 71. Kd6 {[%clk 0:00:03]}  Nd3 {[%clk 0:00:12]} 72. c5 {[%clk 0:00:04]}  Nf4 {[%clk 0:00:12]} 73. Ke5 {[%clk 0:00:03]}  Ng6+ {[%clk 0:00:11]} 74. Kd6 {[%clk 0:00:03]}  Nxh4 {[%clk 0:00:12]} 75. Bc6 {[%clk 0:00:04]}  Bb3 {[%clk 0:00:11]} 76. Bd7 {[%clk 0:00:04]}  Nf3 {[%clk 0:00:09]} 77. c6 {[%clk 0:00:05]}  Ng5 {[%clk 0:00:09]} 78. c7 {[%clk 0:00:04]}  Nf7+ {[%clk 0:00:09]} 79. Kc5 {[%clk 0:00:04]}  Ne5 {[%clk 0:00:06]} 80. c8=Q {[%clk 0:00:04]}  Bf7 {[%clk 0:00:05]} 81. Kd4 {[%clk 0:00:02]}  Nf3+ {[%clk 0:00:05]} 82. Kc3 {[%clk 0:00:03]}  Ng5 {[%clk 0:00:06]} 83. Bf5 {[%clk 0:00:03]}  Kf6 {[%clk 0:00:06]} 84. Qh8+ {[%clk 0:00:03]}  Ke7 {[%clk 0:00:06]} 85. Qxh6 {[%clk 0:00:04]}  Nf3 {[%clk 0:00:07]} 86. Qf4 {[%clk 0:00:03]}  Ne1 {[%clk 0:00:06]} 87. Qe5+ {[%clk 0:00:03]}  Kf8 {[%clk 0:00:06]} 88. Nd5 {[%clk 0:00:04]}  Nf3 {[%clk 0:00:06]} 89. Qh8+ {[%clk 0:00:04]}  Bg8 {[%clk 0:00:06]} 90. Be6 {[%clk 0:00:04]} 1-0


[Site "https://www.chess.com"]

[Event "Titled Tuesday Blitz February 15 Early 2022"]
[White "Carrasco Miranda, Andres"]
[Black "Demin, Vladimir"]
[WhiteFideId "3405990"]
[BlackFideId "4167457"]
[WhiteElo "2177"]
[BlackElo "2475"]
[Result "1/2-1/2"]
[Round "02"]
[TimeControl "180+1"]
[Date "2022.02.15"]
[WhiteClock "0:00:42"]
[BlackClock "0:00:12"]

1. d4 {[%clk 0:02:55]}  Nf6 {[%clk 0:02:59]} 2. c4 {[%clk 0:02:53]}  e5 {[%clk 0:02:56]} 3. dxe5 {[%clk 0:02:50]}  Ng4 {[%clk 0:02:54]} 4. Nf3 {[%clk 0:02:50]}  Bc5 {[%clk 0:02:38]} 5. e3 {[%clk 0:02:47]}  Nc6 {[%clk 0:02:37]} 6. Nc3 {[%clk 0:02:46]}  O-O {[%clk 0:02:37]} 7. Be2 {[%clk 0:02:46]}  Ngxe5 {[%clk 0:02:35]} 8. Nxe5 {[%clk 0:02:47]}  Nxe5 {[%clk 0:02:35]} 9. O-O {[%clk 0:02:48]}  Re8 {[%clk 0:02:35]} 10. f4 {[%clk 0:02:47]}  Nc6 {[%clk 0:02:33]} 11. f5 {[%clk 0:02:45]}  Bxe3+ {[%clk 0:02:18]} 12. Bxe3 {[%clk 0:02:43]}  Rxe3 {[%clk 0:02:19]} 13. f6 {[%clk 0:02:44]}  g6 {[%clk 0:02:17]} 14. Qd2 {[%clk 0:02:25]}  Re5 {[%clk 0:02:09]} 15. Nd5 {[%clk 0:02:10]}  Rxd5 {[%clk 0:01:53]} 16. cxd5 {[%clk 0:02:10]}  Ne5 {[%clk 0:01:52]} 17. d6 {[%clk 0:02:05]}  b6 {[%clk 0:01:42]} 18. dxc7 {[%clk 0:01:48]}  Qf8 {[%clk 0:01:37]} 19. Bf3 {[%clk 0:01:45]}  Nxf3+ {[%clk 0:01:36]} 20. Rxf3 {[%clk 0:01:46]}  Bb7 {[%clk 0:01:36]} 21. Rc3 {[%clk 0:01:37]}  Bc6 {[%clk 0:01:29]} 22. Re1 {[%clk 0:01:33]}  Rc8 {[%clk 0:01:24]} 23. Rxc6 {[%clk 0:01:16]}  dxc6 {[%clk 0:01:23]} 24. Re7 {[%clk 0:01:17]}  h6 {[%clk 0:01:06]} 25. Qd7 {[%clk 0:01:08]}  h5 {[%clk 0:00:36]} 26. Rxf7 {[%clk 0:01:05]}  Qc5+ {[%clk 0:00:35]} 27. Kf1 {[%clk 0:01:01]}  Qc4+ {[%clk 0:00:20]} 28. Kf2 {[%clk 0:00:58]}  Qf4+ {[%clk 0:00:19]} 29. Ke2 {[%clk 0:00:53]}  Qe4+ {[%clk 0:00:19]} 30. Kd2 {[%clk 0:00:51]}  Qxg2+ {[%clk 0:00:18]} 31. Kc1 {[%clk 0:00:44]}  Qf1+ {[%clk 0:00:16]} 32. Kc2 {[%clk 0:00:44]}  Qc4+ {[%clk 0:00:16]} 33. Kd1 {[%clk 0:00:42]}  Qf1+ {[%clk 0:00:14]} 34. Kc2 {[%clk 0:00:42]}  Qc4+ {[%clk 0:00:13]} 35. Kd1 {[%clk 0:00:42]}  Qf1+ {[%clk 0:00:12]} 36. Kc2 {[%clk 0:00:42]} 1/2-1/2


[Site "https://www.chess.com"]

[Event "Titled Tuesday Blitz February 15 Early 2022"]
[White "Ceres, Dragos"]
[Black "Hakobyan, Aram"]
[WhiteFideId "13905864"]
[BlackFideId "13306677"]
[WhiteElo "2072"]
[BlackElo "2557"]
[Result "0-1"]
[Round "02"]
[TimeControl "180+1"]
[Date "2022.02.15"]
[WhiteClock "0:00:02"]
[BlackClock "0:00:29"]

1. e4 {[%clk 0:03:00]}  e5 {[%clk 0:02:59]} 2. Nf3 {[%clk 0:02:59]}  Nc6 {[%clk 0:02:59]} 3. Bc4 {[%clk 0:02:58]}  Nf6 {[%clk 0:02:59]} 4. d3 {[%clk 0:02:53]}  Be7 {[%clk 0:02:59]} 5. O-O {[%clk 0:02:53]}  d6 {[%clk 0:02:57]} 6. a4 {[%clk 0:02:53]}  O-O {[%clk 0:02:57]} 7. h3 {[%clk 0:02:51]}  h6 {[%clk 0:02:49]} 8. c3 {[%clk 0:02:47]}  Kh8 {[%clk 0:02:28]} 9. Nbd2 {[%clk 0:02:36]}  Nh7 {[%clk 0:02:28]} 10. d4 {[%clk 0:02:32]}  Bf6 {[%clk 0:02:22]} 11. d5 {[%clk 0:02:25]}  Ne7 {[%clk 0:02:22]} 12. Re1 {[%clk 0:02:19]}  g6 {[%clk 0:02:15]} 13. a5 {[%clk 0:02:14]}  Bg7 {[%clk 0:02:16]} 14. a6 {[%clk 0:02:14]}  b6 {[%clk 0:02:16]} 15. Bb5 {[%clk 0:02:11]}  f5 {[%clk 0:02:15]} 16. c4 {[%clk 0:01:42]}  f4 {[%clk 0:02:08]} 17. b4 {[%clk 0:01:34]}  g5 {[%clk 0:02:00]} 18. c5 {[%clk 0:01:32]}  h5 {[%clk 0:01:50]} 19. Nc4 {[%clk 0:01:19]}  Ng6 {[%clk 0:01:42]} 20. Bc6 {[%clk 0:01:14]}  Rb8 {[%clk 0:01:41]} 21. Nh2 {[%clk 0:01:06]}  g4 {[%clk 0:01:29]} 22. cxd6 {[%clk 0:00:59]}  cxd6 {[%clk 0:01:29]} 23. hxg4 {[%clk 0:00:54]}  hxg4 {[%clk 0:01:30]} 24. b5 {[%clk 0:00:47]}  g3 {[%clk 0:01:22]} 25. Nf3 {[%clk 0:00:31]}  Bg4 {[%clk 0:01:19]} 26. Ba3 {[%clk 0:00:24]}  Rf6 {[%clk 0:01:17]} 27. Qd3 {[%clk 0:00:14]}  Bf8 {[%clk 0:00:50]} 28. Bb2 {[%clk 0:00:13]}  Qe7 {[%clk 0:00:45]} 29. Rf1 {[%clk 0:00:11]}  Qg7 {[%clk 0:00:42]} 30. Nfxe5 {[%clk 0:00:08]}  dxe5 {[%clk 0:00:37]} 31. Nxe5 {[%clk 0:00:09]}  Nxe5 {[%clk 0:00:32]} 32. Bxe5 {[%clk 0:00:08]}  Qh6 {[%clk 0:00:33]} 33. fxg3 {[%clk 0:00:08]}  Bc5+ {[%clk 0:00:32]} 34. Bd4 {[%clk 0:00:08]}  fxg3 {[%clk 0:00:29]} 35. Qxg3 {[%clk 0:00:02]}  Bxd4+ {[%clk 0:00:29]} 0-1


[Site "https://www.chess.com"]

[Event "Titled Tuesday Blitz February 15 Early 2022"]
[White "Chigaev, Maksim"]
[Black "Krysa, Leandro"]
[WhiteFideId "4108116"]
[BlackFideId "116807"]
[WhiteElo "2502"]
[BlackElo "2490"]
[Result "1-0"]
[Round "02"]
[TimeControl "180+1"]
[Date "2022.02.15"]
[WhiteClock "0:00:34"]
[BlackClock "0:00:14"]

1. e4 {[%clk 0:03:00]}  c5 {[%clk 0:02:59]} 2. Nf3 {[%clk 0:03:00]}  Nc6 {[%clk 0:02:59]} 3. Bb5 {[%clk 0:02:59]}  g6 {[%clk 0:02:58]} 4. O-O {[%clk 0:02:58]}  Bg7 {[%clk 0:02:58]} 5. Re1 {[%clk 0:02:59]}  e5 {[%clk 0:02:58]} 6. Bxc6 {[%clk 0:02:57]}  dxc6 {[%clk 0:02:57]} 7. d3 {[%clk 0:02:57]}  Qc7 {[%clk 0:02:53]} 8. a4 {[%clk 0:02:58]}  b6 {[%clk 0:02:53]} 9. Na3 {[%clk 0:02:56]}  Ne7 {[%clk 0:02:49]} 10. Be3 {[%clk 0:02:54]}  O-O {[%clk 0:02:48]} 11. Nc4 {[%clk 0:02:53]}  Be6 {[%clk 0:02:48]} 12. Nfd2 {[%clk 0:02:50]}  f5 {[%clk 0:02:45]} 13. f3 {[%clk 0:02:43]}  f4 {[%clk 0:02:45]} 14. Bf2 {[%clk 0:02:43]}  g5 {[%clk 0:02:45]} 15. g4 {[%clk 0:02:30]}  fxg3 {[%clk 0:02:39]} 16. hxg3 {[%clk 0:02:31]}  Ng6 {[%clk 0:02:34]} 17. Ne3 {[%clk 0:02:19]}  h5 {[%clk 0:02:26]} 18. a5 {[%clk 0:02:18]}  Rad8 {[%clk 0:02:16]} 19. axb6 {[%clk 0:02:18]}  axb6 {[%clk 0:02:16]} 20. b3 {[%clk 0:02:16]}  Rd7 {[%clk 0:02:08]} 21. g4 {[%clk 0:02:04]}  hxg4 {[%clk 0:02:03]} 22. fxg4 {[%clk 0:02:05]}  Nf4 {[%clk 0:01:52]} 23. Nf5 {[%clk 0:02:05]}  Bxf5 {[%clk 0:01:46]} 24. gxf5 {[%clk 0:02:05]}  Bf6 {[%clk 0:01:40]} 25. Qg4 {[%clk 0:01:51]}  Rh7 {[%clk 0:01:39]} 26. Bg3 {[%clk 0:01:51]}  Kf7 {[%clk 0:01:33]} 27. Nf3 {[%clk 0:01:18]}  Rfh8 {[%clk 0:01:25]} 28. Kf2 {[%clk 0:01:14]}  c4 {[%clk 0:01:14]} 29. bxc4 {[%clk 0:00:54]}  Qe7 {[%clk 0:01:02]} 30. d4 {[%clk 0:00:38]}  exd4 {[%clk 0:00:40]} 31. e5 {[%clk 0:00:36]}  Qc5 {[%clk 0:00:29]} 32. Bxf4 {[%clk 0:00:35]}  gxf4 {[%clk 0:00:14]} 33. Qg6+ {[%clk 0:00:34]} 1-0


[Site "https://www.chess.com"]

[Event "Titled Tuesday Blitz February 15 Early 2022"]
[White "Cori T., Deysi"]
[Black "Faizrakhmanov, Ramil"]
[WhiteFideId "3801934"]
[BlackFideId "24103209"]
[WhiteElo "2350"]
[BlackElo "2502"]
[Result "0-1"]
[Round "02"]
[TimeControl "180+1"]
[Date "2022.02.15"]
[WhiteClock "0:00:02"]
[BlackClock "0:00:05"]

1. d4 {[%clk 0:03:00]}  Nf6 {[%clk 0:02:59]} 2. Nf3 {[%clk 0:03:00]}  g6 {[%clk 0:02:59]} 3. g3 {[%clk 0:03:00]}  Bg7 {[%clk 0:02:59]} 4. Bg2 {[%clk 0:03:01]}  O-O {[%clk 0:02:59]} 5. O-O {[%clk 0:03:02]}  d6 {[%clk 0:03:00]} 6. b3 {[%clk 0:03:02]}  c5 {[%clk 0:02:59]} 7. Bb2 {[%clk 0:02:59]}  cxd4 {[%clk 0:02:49]} 8. Nxd4 {[%clk 0:02:58]}  a6 {[%clk 0:02:45]} 9. c4 {[%clk 0:02:56]}  d5 {[%clk 0:02:42]} 10. cxd5 {[%clk 0:02:49]}  Nxd5 {[%clk 0:02:41]} 11. Nc3 {[%clk 0:02:48]}  Nf4 {[%clk 0:02:31]} 12. gxf4 {[%clk 0:02:45]}  Qxd4 {[%clk 0:02:23]} 13. Qxd4 {[%clk 0:02:39]}  Bxd4 {[%clk 0:02:24]} 14. e3 {[%clk 0:02:40]}  Bf6 {[%clk 0:02:22]} 15. Na4 {[%clk 0:02:18]}  Bxb2 {[%clk 0:02:20]} 16. Nxb2 {[%clk 0:02:19]}  Ra7 {[%clk 0:02:07]} 17. Rac1 {[%clk 0:02:11]}  b5 {[%clk 0:02:06]} 18. Nd3 {[%clk 0:02:06]}  Bg4 {[%clk 0:02:02]} 19. Ne5 {[%clk 0:02:03]}  Be6 {[%clk 0:02:02]} 20. Rfd1 {[%clk 0:02:02]}  a5 {[%clk 0:01:57]} 21. Bd5 {[%clk 0:01:58]}  Bxd5 {[%clk 0:01:31]} 22. Rxd5 {[%clk 0:01:59]}  b4 {[%clk 0:01:32]} 23. Rcc5 {[%clk 0:01:50]}  a4 {[%clk 0:01:31]} 24. Ra5 {[%clk 0:01:50]}  Rxa5 {[%clk 0:01:31]} 25. Rxa5 {[%clk 0:01:51]}  axb3 {[%clk 0:01:31]} 26. axb3 {[%clk 0:01:52]}  f6 {[%clk 0:01:27]} 27. Nd3 {[%clk 0:01:48]}  Nc6 {[%clk 0:01:20]} 28. Rc5 {[%clk 0:01:47]}  Rd8 {[%clk 0:01:20]} 29. Nb2 {[%clk 0:01:31]}  Nb8 {[%clk 0:01:05]} 30. Rb5 {[%clk 0:01:23]}  Na6 {[%clk 0:01:00]} 31. Nc4 {[%clk 0:00:54]}  Rd3 {[%clk 0:00:56]} 32. Rb6 {[%clk 0:00:51]}  Nc5 {[%clk 0:00:54]} 33. Rxb4 {[%clk 0:00:48]}  Nxb3 {[%clk 0:00:54]} 34. Rb7 {[%clk 0:00:17]}  Kf8 {[%clk 0:00:34]} 35. Nb2 {[%clk 0:00:14]}  Rc3 {[%clk 0:00:30]} 36. Na4 {[%clk 0:00:14]}  Rc1+ {[%clk 0:00:30]} 37. Kg2 {[%clk 0:00:15]}  Nd2 {[%clk 0:00:29]} 38. Nb6 {[%clk 0:00:11]}  Rc2 {[%clk 0:00:25]} 39. Nd5 {[%clk 0:00:03]}  Ne4 {[%clk 0:00:22]} 40. Rxe7 {[%clk 0:00:02]}  f5 {[%clk 0:00:15]} 41. Rxh7 {[%clk 0:00:02]}  Rxf2+ {[%clk 0:00:16]} 42. Kg1 {[%clk 0:00:02]}  Rd2 {[%clk 0:00:15]} 43. Ne7 {[%clk 0:00:02]}  Rd6 {[%clk 0:00:13]} 44. Nc8 {[%clk 0:00:02]}  Rd1+ {[%clk 0:00:09]} 45. Kg2 {[%clk 0:00:02]}  Rd2+ {[%clk 0:00:10]} 46. Kg1 {[%clk 0:00:02]}  Kg8 {[%clk 0:00:09]} 47. Re7 {[%clk 0:00:01]}  Kf8 {[%clk 0:00:09]} 48. Rh7 {[%clk 0:00:01]}  Kg8 {[%clk 0:00:09]} 49. Re7 {[%clk 0:00:02]}  Re2 {[%clk 0:00:09]} 50. Rd7 {[%clk 0:00:01]}  Kf8 {[%clk 0:00:09]} 51. Ne7 {[%clk 0:00:02]}  Ke8 {[%clk 0:00:07]} 52. Ra7 {[%clk 0:00:01]}  Nd2 {[%clk 0:00:07]} 53. Nxg6 {[%clk 0:00:02]}  Nf3+ {[%clk 0:00:07]} 54. Kf1 {[%clk 0:00:02]}  Rxh2 {[%clk 0:00:08]} 55. Ne5 {[%clk 0:00:02]}  Nd2+ {[%clk 0:00:05]} 56. Ke1 {[%clk 0:00:02]}  Ne4 {[%clk 0:00:05]} 0-1


[Site "https://www.chess.com"]

[Event "Titled Tuesday Blitz February 15 Early 2022"]
[White "Coto Mederos, Michel"]
[Black "Rustemov, Alexander"]
[WhiteFideId "3508528"]
[BlackFideId "4119002"]
[WhiteElo "2427"]
[BlackElo "2794"]
[Result "1-0"]
[Round "02"]
[TimeControl "180+1"]
[Date "2022.02.15"]
[WhiteClock "0:00:04"]
[BlackClock "0:00:01"]

1. c4 {[%clk 0:03:00]}  e6 {[%clk 0:02:54]} 2. Nc3 {[%clk 0:03:00]}  d5 {[%clk 0:02:54]} 3. d4 {[%clk 0:03:00]}  Be7 {[%clk 0:02:51]} 4. Nf3 {[%clk 0:02:54]}  Nf6 {[%clk 0:02:50]} 5. cxd5 {[%clk 0:02:54]}  exd5 {[%clk 0:02:49]} 6. Bg5 {[%clk 0:02:54]}  c6 {[%clk 0:02:48]} 7. e3 {[%clk 0:02:54]}  Bf5 {[%clk 0:02:47]} 8. Bd3 {[%clk 0:02:50]}  Bxd3 {[%clk 0:02:46]} 9. Qxd3 {[%clk 0:02:51]}  O-O {[%clk 0:02:44]} 10. O-O {[%clk 0:02:44]}  Nbd7 {[%clk 0:02:45]} 11. Nd2 {[%clk 0:02:34]}  Re8 {[%clk 0:02:43]} 12. Rab1 {[%clk 0:02:30]}  Ne4 {[%clk 0:02:30]} 13. Bf4 {[%clk 0:02:10]}  Nxc3 {[%clk 0:02:22]} 14. bxc3 {[%clk 0:02:07]}  b5 {[%clk 0:02:22]} 15. e4 {[%clk 0:01:57]}  Nb6 {[%clk 0:02:21]} 16. Rbe1 {[%clk 0:01:43]}  Bf8 {[%clk 0:02:11]} 17. Bg3 {[%clk 0:01:34]}  dxe4 {[%clk 0:02:10]} 18. Nxe4 {[%clk 0:01:32]}  Qd5 {[%clk 0:02:08]} 19. Re2 {[%clk 0:01:14]}  Re6 {[%clk 0:02:04]} 20. Rfe1 {[%clk 0:01:11]}  Rae8 {[%clk 0:02:03]} 21. h4 {[%clk 0:01:06]}  h6 {[%clk 0:02:01]} 22. Qf3 {[%clk 0:00:37]}  Nc4 {[%clk 0:01:28]} 23. h5 {[%clk 0:00:35]}  a5 {[%clk 0:01:06]} 24. Bh4 {[%clk 0:00:27]}  Nd6 {[%clk 0:00:55]} 25. Ng3 {[%clk 0:00:14]}  Qxf3 {[%clk 0:00:50]} 26. gxf3 {[%clk 0:00:15]}  Rxe2 {[%clk 0:00:43]} 27. Rxe2 {[%clk 0:00:16]}  Rxe2 {[%clk 0:00:42]} 28. Nxe2 {[%clk 0:00:17]}  g6 {[%clk 0:00:25]} 29. hxg6 {[%clk 0:00:15]}  fxg6 {[%clk 0:00:25]} 30. Bd8 {[%clk 0:00:12]}  a4 {[%clk 0:00:25]} 31. f4 {[%clk 0:00:10]}  Kf7 {[%clk 0:00:25]} 32. Kg2 {[%clk 0:00:10]}  Ke6 {[%clk 0:00:25]} 33. Kf3 {[%clk 0:00:09]}  Kd5 {[%clk 0:00:23]} 34. Ng3 {[%clk 0:00:05]}  Nf5 {[%clk 0:00:23]} 35. Ne4 {[%clk 0:00:02]}  b4 {[%clk 0:00:18]} 36. cxb4 {[%clk 0:00:02]}  Nxd4+ {[%clk 0:00:18]} 37. Ke3 {[%clk 0:00:02]}  Nf5+ {[%clk 0:00:18]} 38. Kd3 {[%clk 0:00:02]}  Bxb4 {[%clk 0:00:18]} 39. Bb6 {[%clk 0:00:02]}  h5 {[%clk 0:00:16]} 40. Bd8 {[%clk 0:00:02]}  Bd6 {[%clk 0:00:14]} 41. Nc3+ {[%clk 0:00:01]}  Ke6 {[%clk 0:00:14]} 42. Nxa4 {[%clk 0:00:01]}  Bxf4 {[%clk 0:00:15]} 43. Ke4 {[%clk 0:00:01]}  Bd6 {[%clk 0:00:13]} 44. Nc3 {[%clk 0:00:02]}  Bb4 {[%clk 0:00:08]} 45. Ne2 {[%clk 0:00:01]}  Nd6+ {[%clk 0:00:08]} 46. Kf3 {[%clk 0:00:01]}  c5 {[%clk 0:00:03]} 47. Nf4+ {[%clk 0:00:02]}  Kf5 {[%clk 0:00:03]} 48. Nh3 {[%clk 0:00:03]}  Nc4 {[%clk 0:00:02]} 49. Bc7 {[%clk 0:00:04]}  Ne5+ {[%clk 0:00:02]} 50. Kg2 {[%clk 0:00:04]}  g5 {[%clk 0:00:02]} 51. Ng1 {[%clk 0:00:03]}  g4 {[%clk 0:00:02]} 52. Ne2 {[%clk 0:00:04]}  h4 {[%clk 0:00:01]} 53. Bd6 {[%clk 0:00:04]}  Nd3 {[%clk 0:00:01]} 54. Ng1 {[%clk 0:00:03]}  c4 {[%clk 0:00:01]} 55. Ne2 {[%clk 0:00:03]}  Bxd6 {[%clk 0:00:01]} 56. Nd4+ {[%clk 0:00:04]} 1-0


[Site "https://www.chess.com"]

[Event "Titled Tuesday Blitz February 15 Early 2022"]
[White "Csonka, Balazs"]
[Black "Paravyan, David"]
[WhiteFideId "742910"]
[BlackFideId "4194985"]
[WhiteElo "2404"]
[BlackElo "2569"]
[Result "1/2-1/2"]
[Round "02"]
[TimeControl "180+1"]
[Date "2022.02.15"]
[WhiteClock "0:00:07"]
[BlackClock "0:00:08"]

1. e4 {[%clk 0:03:00]}  e5 {[%clk 0:02:59]} 2. Nf3 {[%clk 0:03:00]}  Nf6 {[%clk 0:02:59]} 3. Nxe5 {[%clk 0:02:56]}  d6 {[%clk 0:02:58]} 4. Nf3 {[%clk 0:02:57]}  Nxe4 {[%clk 0:02:58]} 5. d4 {[%clk 0:02:57]}  d5 {[%clk 0:02:58]} 6. Bd3 {[%clk 0:02:58]}  Bd6 {[%clk 0:02:59]} 7. O-O {[%clk 0:02:57]}  O-O {[%clk 0:02:59]} 8. c4 {[%clk 0:02:57]}  c6 {[%clk 0:02:59]} 9. Re1 {[%clk 0:02:52]}  Bf5 {[%clk 0:02:59]} 10. Qb3 {[%clk 0:02:47]}  Na6 {[%clk 0:02:57]} 11. Nbd2 {[%clk 0:01:50]}  Nxd2 {[%clk 0:02:53]} 12. Bxd2 {[%clk 0:01:48]}  Bxd3 {[%clk 0:02:52]} 13. Qxd3 {[%clk 0:01:49]}  dxc4 {[%clk 0:02:52]} 14. Qxc4 {[%clk 0:01:49]}  Nc7 {[%clk 0:02:51]} 15. Re2 {[%clk 0:01:40]}  Re8 {[%clk 0:02:46]} 16. Rae1 {[%clk 0:01:22]}  Rxe2 {[%clk 0:02:45]} 17. Qxe2 {[%clk 0:01:18]}  Qd7 {[%clk 0:02:44]} 18. Ne5 {[%clk 0:01:12]}  Bxe5 {[%clk 0:02:15]} 19. dxe5 {[%clk 0:01:13]}  Ne6 {[%clk 0:02:14]} 20. Bc3 {[%clk 0:00:48]}  Rd8 {[%clk 0:02:13]} 21. Qe3 {[%clk 0:00:46]}  c5 {[%clk 0:02:11]} 22. f4 {[%clk 0:00:40]}  Nd4 {[%clk 0:02:11]} 23. Bxd4 {[%clk 0:00:39]}  Qxd4 {[%clk 0:01:57]} 24. Re2 {[%clk 0:00:22]}  Qxe3+ {[%clk 0:01:27]} 25. Rxe3 {[%clk 0:00:22]}  g6 {[%clk 0:01:16]} 26. Kf2 {[%clk 0:00:21]}  Rd2+ {[%clk 0:01:13]} 27. Re2 {[%clk 0:00:21]}  Rd4 {[%clk 0:01:13]} 28. Ke3 {[%clk 0:00:19]}  Kf8 {[%clk 0:01:12]} 29. Rd2 {[%clk 0:00:17]}  Ra4 {[%clk 0:01:07]} 30. b3 {[%clk 0:00:17]}  Rb4 {[%clk 0:01:01]} 31. g3 {[%clk 0:00:17]}  a5 {[%clk 0:01:00]} 32. Rd7 {[%clk 0:00:17]}  b6 {[%clk 0:00:47]} 33. Rb7 {[%clk 0:00:14]}  h5 {[%clk 0:00:46]} 34. h3 {[%clk 0:00:11]}  a4 {[%clk 0:00:46]} 35. bxa4 {[%clk 0:00:10]}  Rxa4 {[%clk 0:00:47]} 36. Rxb6 {[%clk 0:00:09]}  Rxa2 {[%clk 0:00:47]} 37. Rc6 {[%clk 0:00:08]}  Rc2 {[%clk 0:00:47]} 38. g4 {[%clk 0:00:06]}  h4 {[%clk 0:00:42]} 39. f5 {[%clk 0:00:05]}  gxf5 {[%clk 0:00:39]} 40. gxf5 {[%clk 0:00:06]}  Rc3+ {[%clk 0:00:12]} 41. Kf4 {[%clk 0:00:06]}  Rxh3 {[%clk 0:00:13]} 42. Rxc5 {[%clk 0:00:06]}  Rh1 {[%clk 0:00:07]} 43. f6 {[%clk 0:00:04]}  Kg8 {[%clk 0:00:07]} 44. Rc8+ {[%clk 0:00:04]}  Kh7 {[%clk 0:00:07]} 45. Rf8 {[%clk 0:00:04]}  Kg6 {[%clk 0:00:08]} 46. Rg8+ {[%clk 0:00:05]}  Kh6 {[%clk 0:00:07]} 47. Rh8+ {[%clk 0:00:04]}  Kg6 {[%clk 0:00:07]} 48. Rg8+ {[%clk 0:00:04]}  Kh6 {[%clk 0:00:07]} 49. Rg7 {[%clk 0:00:04]}  Rf1+ {[%clk 0:00:07]} 50. Kg4 {[%clk 0:00:03]}  Rg1+ {[%clk 0:00:05]} 51. Kxh4 {[%clk 0:00:03]}  Rxg7 {[%clk 0:00:05]} 52. fxg7 {[%clk 0:00:04]}  Kxg7 {[%clk 0:00:06]} 53. Kg5 {[%clk 0:00:05]}  Kg8 {[%clk 0:00:06]} 54. Kf6 {[%clk 0:00:05]}  Kf8 {[%clk 0:00:07]} 55. e6 {[%clk 0:00:06]}  fxe6 {[%clk 0:00:08]} 56. Kxe6 {[%clk 0:00:07]} 1/2-1/2


[Site "https://www.chess.com"]